bitfinex-derivatives/quotes_ETHF0:USTF0_20210109
["timestamp","ask_amount","ask_price","bid_price","bid_amount"]
[1610153196655,4.00959,1194.6,1193.8,57.3121]
[1610153196857,2.0375,1195.2,1193.8,57.3121]
[1610153197555,2.0375,1195.2,1193.7,1.8633]
[1610153197854,32.0375,1195.2,1192.9,3.07277126]
[1610153198259,32.0375,1195.2,1192.6,69.719]
[1610153198456,2.0375,1195.2,1192.6,69.719]
[1610153198857,2.0375,1195.2,1192.6,72.79219907]
[1610153199058,4.00959,1194.8,1194.3,4.00959]
[1610153199457,4.00959,1194.8,1193.7,49.3135]
[1610153199758,2.0375,1195.2,1193.7,49.3135]
[1610153200157,2.0375,1195.2,1193.7,51.6441]
[1610153200758,32.5037,1195.5,1193.7,51.6441]
[1610153201160,4.00959,1193.8,1193.7,2.3306]
[1610153202561,2.6798,1194.6,1193.7,2.3306]
[1610153203160,4.00959,1193.8,1193.7,2.3306]
[1610153203963,2.6798,1194.6,1193.7,2.3306]
[1610153204165,2.6145,1194.9,1193.7,2.3306]
[1610153205265,6.6296,1196.1,1193.3,68.4016]
[1610153205465,6.6296,1196.1,1194.9,2.9363]
[1610153205667,36.6296,1196.1,1194.9,2.9363]
[1610153206766,30.0,1196.1,1194.6,2.8805]
[1610153206967,30.0,1196.0,1194.6,2.8805]
[1610153207568,4.00959,1194.7,1194.1,56.7233]
[1610153209373,4.00959,1195.0,1194.7,4.00959]
[1610153210875,4.00959,1195.0,1194.1,58.7559]
[1610153211077,4.00959,1195.0,1194.1,2.0326]
[1610153211275,32.2974,1195.2,1194.1,2.0326]
[1610153211475,2.2974,1195.2,1194.1,2.0326]
[1610153211875,4.00959,1194.2,1194.1,2.0326]
[1610153212375,4.00959,1194.2,1193.9,4.00959]
[1610153213781,4.00959,1194.2,1194.1,4.00959]
[1610153213984,4.00959,1194.2,1192.7,62.66182705]
[1610153214384,1.932,1194.5,1192.7,59.589]
[1610153214588,1.932,1194.5,1192.7,62.5269]
[1610153215785,4.00959,1192.8,1192.7,66.53649]
[1610153215986,4.00959,1192.8,1192.7,6.94749]
[1610153216690,4.00959,1192.8,1192.7,2.9379]
[1610153217192,1.9746,1193.2,1192.0,0.5]
[1610153217396,1.9746,1193.2,1192.0,2.603]
[1610153217794,4.00959,1192.1,1192.0,2.603]
[1610153219994,4.00959,1192.1,1192.0,0.5]
[1610153220696,2.5367,1192.5,1192.0,0.5]
[1610153221195,32.5367,1192.5,1192.0,0.5]
[1610153222298,4.00959,1192.1,1192.0,0.5]
[1610153222499,34.00959,1192.1,1192.0,0.5]
[1610153223702,86.94539,1192.1,1192.0,0.5]
[1610153224700,4.00959,1192.1,1192.0,0.5]
[1610153225200,2.8356,1192.2,1192.0,0.5]
[1610153225500,1.9746,1193.2,1192.0,0.5]
[1610153226103,5.63929265,1194.0,1192.0,0.5]
[1610153226302,30.0,1194.0,1192.0,0.5]
[1610153226502,4.00959,1192.1,1192.0,0.5]
[1610153226910,51.0581,1193.1,1192.0,0.5]
[1610153227307,30.0,1193.0,1192.0,0.5]
[1610153227508,31.8765,1193.0,1192.0,0.5]
[1610153228708,4.00959,1192.1,1192.0,0.5]
[1610153228909,36.60899,1192.1,1192.0,0.5]
[1610153229208,46.13679,1192.1,1192.0,0.5]
[1610153229510,36.60899,1192.1,1192.0,0.5]
[1610153230309,36.60899,1192.1,1189.7,0.57406568]
[1610153230310,55.6073,1191.3,1189.7,0.57406568]
[1610153230610,4.00959,1189.8,1189.7,0.57406568]
[1610153231511,4.00959,1189.8,1188.4,0.25212048]
[1610153231710,66.8622,1189.7,1187.7,4.11007191]
[1610153232114,66.8622,1189.7,1187.3,4.11160038]
[1610153232411,66.8622,1189.7,1187.2,4.69638915]
[1610153232610,4.00959,1189.1,1187.2,4.69638915]
[1610153233311,4.00959,1189.1,1187.3,4.11198981]
[1610153233511,4.00959,1189.1,1187.3,6.70258981]
[1610153233710,4.00959,1189.1,1187.3,2.5906]
[1610153234413,4.00959,1189.1,1187.3,6.70306127]
[1610153234613,4.00959,1188.3,1188.2,4.00959]
[1610153234813,6.4584,1190.2,1188.2,4.00959]
[1610153235016,49.2525,1189.3,1187.3,2.5906]
[1610153236319,51.1564,1189.3,1187.3,2.5906]
[1610153236713,31.9039,1189.3,1187.3,2.5906]
[1610153236913,4.00959,1187.4,1187.3,2.5906]
[1610153237517,65.04299,1187.4,1187.3,2.5906]
[1610153237919,61.0334,1187.4,1187.3,2.5906]
[1610153238120,2.9742,1187.8,1187.2,0.58437823]
[1610153238721,48.4926,1187.4,1187.2,0.58437823]
[1610153238920,4.00959,1187.3,1187.2,0.58437823]
[1610153239521,2.9742,1187.8,1187.2,0.58437823]
[1610153239820,1.8526,1188.2,1187.2,0.58437823]
[1610153239821,1.8526,1188.2,1187.2,2.75907823]
[1610153240019,2.4205,1188.5,1187.2,2.75907823]
[1610153240620,6.3795,1189.6,1187.2,2.75907823]
[1610153240821,6.3795,1189.6,1187.2,11.30297823]
[1610153241023,6.3795,1189.6,1189.2,4.00959]
[1610153241420,3.7594095,1190.3,1189.2,4.00959]
[1610153241621,6.5465,1190.4,1189.2,4.00959]
[1610153241823,5.53575473,1190.7,1189.2,4.00959]
[1610153242121,3.76902243,1191.0,1189.2,5.92249]
[1610153242325,6.4629,1191.2,1189.2,5.92249]
[1610153242724,6.4629,1191.2,1189.2,1.9129]
[1610153243021,4.44362409,1191.6,1189.2,1.9129]
[1610153243022,5.55159237,1191.6,1189.2,1.9129]
[1610153243224,4.00959,1190.8,1189.7,4.00959]
[1610153243623,2.4711,1190.9,1189.2,1.9129]
[1610153244424,6.6259,1191.7,1189.2,1.9129]
[1610153244723,5.54908265,1192.1,1189.2,1.9129]
[1610153244925,5.54995264,1192.2,1189.2,1.9129]
[1610153245222,4.00959,1190.8,1190.6,4.00959]
[1610153245523,2.1108,1192.1,1190.6,4.00959]
[1610153245723,2.1108,1192.1,1190.6,6.50339]
[1610153246723,5.56651265,1192.9,1190.6,2.4938]
[1610153246923,9.1058,1192.8,1190.6,2.4938]
[1610153247323,4.00959,1190.7,1190.6,6.50339]
[1610153247724,4.00959,1190.7,1190.6,2.4938]
[1610153248724,64.2076,1191.4,1190.6,2.4938]
[1610153249225,64.2076,1191.4,1190.2,2.0992]
[1610153249428,4.00959,1190.7,1190.2,2.0992]
[1610153250029,64.2076,1191.4,1190.2,2.0992]
[1610153251129,64.2076,1191.4,1189.8,2.0704]
[1610153251330,4.00959,1190.4,1189.9,4.00959]
[1610153251529,64.2076,1191.4,1189.9,4.00959]
[1610153251730,2.6563,1191.0,1189.9,4.00959]
[1610153252129,2.6563,1191.0,1189.8,2.0704]
[1610153252732,2.2662,1192.0,1189.8,2.0704]
[1610153253130,6.1487,1192.2,1189.8,2.0704]
[1610153253329,4.00959,1191.1,1190.8,4.00959]
[1610153253829,2.3421,1192.3,1190.8,4.00959]
[1610153254330,2.0194,1192.6,1190.8,2.3353]
[1610153255534,4.00959,1191.8,1190.8,2.3353]
[1610153256031,50.8325,1191.1,1189.8,2.0704]
[1610153256232,50.8325,1191.1,1188.8,3.08271745]
[1610153256734,50.8325,1191.1,1188.7,58.5808]
[1610153257234,52.5334,1191.1,1188.7,58.5808]
[1610153257433,4.00959,1189.0,1188.8,4.00959]
[1610153258035,1.703,1189.4,1188.8,4.00959]
[1610153258335,1.6809,1189.7,1188.8,5.84719]
[1610153258734,2.1051,1190.5,1188.8,5.84719]
[1610153259435,4.00959,1190.0,1189.8,4.00959]
[1610153259836,4.00959,1190.0,1188.8,1.8376]
[1610153261436,4.00959,1188.9,1188.8,1.8376]
[1610153262337,47.2852,1189.6,1188.8,1.8376]
[1610153262541,2.8032,1190.2,1188.8,1.8376]
[1610153262742,2.8032,1190.2,1188.4,2.8703]
[1610153263443,4.00959,1189.2,1188.8,4.00959]
[1610153264138,4.00959,1189.2,1188.4,2.8703]
[1610153265041,2.5338,1189.7,1188.4,2.8703]
[1610153265239,2.8032,1190.2,1188.4,2.8703]
[1610153265447,1.6627,1189.7,1188.4,2.8703]
[1610153265740,4.00959,1189.4,1189.2,4.00959]
[1610153265940,1.6627,1189.7,1188.4,2.8703]
[1610153266140,2.8032,1190.2,1188.6,50.884]
[1610153267443,30.0,1191.0,1188.6,50.884]
[1610153267743,2.7788,1191.1,1188.6,57.76469]
[1610153267945,5.50930092,1191.4,1188.6,57.76469]
[1610153268146,5.50930092,1191.4,1188.6,53.7551]
[1610153268345,1.6688,1191.5,1188.6,53.7551]
[1610153269045,5.516275,1191.9,1188.6,53.7551]
[1610153269446,5.52025246,1192.0,1188.6,53.7551]
[1610153269945,6.6142,1192.1,1188.6,53.7551]
[1610153270146,4.00959,1191.0,1190.5,4.00959]
[1610153270949,4.00959,1191.0,1190.0,53.5735]
[1610153271447,5.66619,1191.0,1190.0,53.5735]
[1610153271652,2.8105,1192.1,1190.0,53.5735]
[1610153271848,2.8105,1192.1,1190.0,55.5779]
[1610153272148,4.00959,1191.2,1191.1,4.00959]
[1610153272348,4.00959,1191.2,1190.0,55.5779]
[1610153273753,4.00959,1191.2,1190.0,2.0044]
[1610153274152,4.00959,1190.1,1190.0,2.0044]
[1610153275253,2.4972,1191.3,1190.0,2.0044]
[1610153276154,4.00959,1191.2,1190.6,4.00959]
[1610153277056,4.00959,1191.2,1190.0,2.0044]
[1610153277456,4.00959,1191.2,1189.6,69.0544]
[1610153278258,4.00959,1191.2,1190.5,4.00959]
[1610153278458,4.00959,1191.2,1190.5,2.2446]
[1610153280259,4.00959,1190.7,1190.5,6.25419]
[1610153280659,4.00959,1190.7,1190.5,2.2446]
[1610153280964,5.66849,1190.7,1190.5,2.2446]
[1610153281160,4.00959,1190.7,1190.5,2.2446]
[1610153281660,34.00959,1190.7,1190.5,2.2446]
[1610153281861,34.00959,1190.7,1189.1,56.6182]
[1610153282264,30.0,1190.7,1189.1,56.6182]
[1610153282463,30.0,1190.7,1188.4,2.8703]
[1610153282763,30.0,1190.6,1187.6,55.3407]
[1610153282968,32.0533,1190.6,1187.6,55.3407]
[1610153284465,2.0533,1190.6,1187.6,55.3407]
[1610153285267,4.00959,1189.9,1189.5,4.00959]
[1610153285767,4.00959,1189.9,1187.6,55.3407]
[1610153286268,5.70409,1189.9,1187.6,55.3407]
[1610153286968,1.666,1190.4,1187.2,34.05937823]
[1610153287269,1.666,1190.4,1188.4,68.4819]
[1610153287470,1.666,1190.4,1188.4,71.3739]
[1610153287768,6.3656,1191.2,1188.4,71.3739]
[1610153287970,6.3656,1191.2,1190.4,4.00959]
[1610153288170,4.00959,1191.3,1190.4,5.93979]
[1610153288772,5.70609,1191.3,1190.4,5.93979]
[1610153289970,4.00959,1191.0,1190.7,4.00959]
[1610153290870,5.70859,1191.0,1190.4,1.9302]
[1610153291473,4.00959,1191.0,1190.4,1.9302]
[1610153291971,4.00959,1190.6,1190.4,1.9302]
[1610153293172,4.00959,1190.6,1189.4,52.3854]
[1610153293578,5.68519,1190.6,1189.4,52.3854]
[1610153293977,4.00959,1190.2,1190.1,4.00959]
[1610153294877,2.2414,1191.4,1190.1,5.82349]
[1610153295378,3.9056,1191.4,1190.1,5.82349]
[1610153295578,33.9056,1191.4,1190.1,5.82349]
[1610153295776,33.9056,1191.4,1190.1,1.8139]
[1610153295978,4.00959,1190.2,1190.1,1.8139]
[1610153296179,34.00959,1190.2,1190.1,1.8139]
[1610153296381,34.00959,1190.2,1188.7,54.6966]
[1610153296589,35.94249,1190.2,1188.7,54.6966]
[1610153297381,31.9329,1190.2,1188.7,54.6966]
[1610153298081,4.00959,1188.8,1188.4,2.892]
[1610153298281,34.00959,1188.8,1188.4,2.892]
[1610153298480,34.00959,1188.8,1187.2,3.14447823]
[1610153299083,32.6856,1188.8,1187.2,3.14447823]
[1610153300182,32.6856,1188.8,1187.5,1.8752]
[1610153300684,2.6856,1188.8,1187.5,1.8752]
[1610153301083,6.207,1189.1,1187.5,1.8752]
[1610153301485,36.207,1189.1,1187.5,1.8752]
[1610153302287,4.00959,1188.2,1187.5,1.8752]
[1610153302687,6.207,1189.1,1187.5,1.8752]
[1610153302887,2.4202,1189.2,1187.5,1.8752]
[1610153303088,6.5884,1190.1,1187.5,1.8752]
[1610153303687,36.5884,1190.1,1187.5,1.8752]
[1610153304687,4.00959,1188.7,1188.0,4.00959]
[1610153304888,4.00959,1188.7,1187.5,1.8752]
[1610153305389,30.0,1189.8,1187.4,59.8022]
[1610153305592,30.0,1189.8,1187.5,2.9111]
[1610153306499,36.3212,1189.8,1187.5,2.9111]
[1610153306697,4.00959,1187.9,1187.5,6.92069]
[1610153306898,4.00959,1187.9,1187.5,2.9111]
[1610153307398,2.5897,1188.9,1187.5,2.9111]
[1610153307598,30.0,1188.8,1187.5,2.9111]
[1610153308097,2.5897,1188.9,1187.5,2.9111]
[1610153308798,4.00959,1188.5,1187.5,2.9111]
[1610153309200,1.883,1189.2,1187.5,2.9111]
[1610153309398,6.5397,1189.7,1187.5,2.9111]
[1610153309597,36.5397,1189.7,1187.5,2.9111]
[1610153310600,36.5397,1189.7,1187.2,73.40757823]
[1610153310800,4.00959,1188.5,1187.5,1.9696]
[1610153312201,30.0,1189.6,1187.5,1.9696]
[1610153312801,4.00959,1187.6,1187.5,1.9696]
[1610153313099,2.393,1189.2,1187.5,1.9696]
[1610153314202,8.2319,1189.7,1187.5,1.9696]
[1610153314610,30.0,1189.6,1187.5,1.9696]
[1610153314807,4.00959,1188.1,1187.5,1.9696]
[1610153315506,1.8122,1189.6,1187.5,1.9696]
[1610153315907,1.8122,1189.6,1187.2,73.40757823]
[1610153317009,1.8122,1189.6,1187.3,4.00959]
[1610153318215,1.8122,1189.6,1187.2,73.40757823]
[1610153318414,64.7051,1189.5,1187.2,3.14447823]
[1610153318713,30.0,1189.4,1187.2,3.14447823]
[1610153319011,4.00959,1187.3,1187.2,3.14447823]
[1610153321213,36.1664,1188.3,1187.2,3.14447823]
[1610153321413,36.1664,1188.3,1187.2,0.58437823]
[1610153322415,6.1664,1188.3,1187.2,0.58437823]
[1610153322814,4.00959,1187.3,1187.2,0.58437823]
[1610153323015,5.70989,1187.3,1187.2,0.58437823]
[1610153323416,1.7003,1187.3,1187.2,0.58437823]
[1610153324116,2.0872,1188.4,1187.2,0.58437823]
[1610153324418,32.0872,1188.4,1187.2,3.15687823]
[1610153324915,4.00959,1187.3,1187.2,3.15687823]
[1610153325116,34.00959,1187.3,1187.2,3.15687823]
[1610153325317,35.69569,1187.3,1187.2,3.15687823]
[1610153325617,34.00959,1187.3,1187.2,3.15687823]
[1610153326217,34.00959,1187.3,1187.2,0.58437823]
[1610153326418,30.0,1187.3,1187.2,0.58437823]
[1610153326920,4.00959,1187.3,1187.2,0.58437823]
[1610153327618,34.00959,1187.3,1187.2,0.58437823]
[1610153328118,4.00959,1187.3,1187.2,0.58437823]
[1610153329123,34.00959,1187.3,1187.2,0.58437823]
[1610153330125,4.00959,1187.3,1187.2,0.58437823]
[1610153330522,34.00959,1187.3,1187.2,0.58437823]
[1610153331929,30.0,1187.3,1187.2,0.58437823]
[1610153332527,31.6641,1187.3,1187.2,0.58437823]
[1610153332927,35.67369,1187.3,1187.2,0.58437823]
[1610153333329,34.00959,1187.3,1187.2,0.58437823]
[1610153334228,89.59389,1187.3,1187.2,0.58437823]
[1610153334430,35.71749,1187.3,1185.3,2.7939]
[1610153334632,55.9057,1186.4,1185.0,2.0648]
[1610153334829,30.0,1186.3,1185.0,2.0648]
[1610153335032,4.00959,1185.1,1185.0,2.0648]
[1610153335937,5.72059,1185.1,1185.0,2.0648]
[1610153337235,1.711,1185.1,1185.0,2.0648]
[1610153337736,4.00959,1185.6,1185.0,2.0648]
[1610153337935,6.2187,1186.7,1185.0,2.0648]
[1610153339638,4.00959,1185.6,1185.2,4.00959]
[1610153341639,4.00959,1186.0,1185.4,4.00959]
[1610153341840,4.00959,1186.0,1185.4,6.79969]
[1610153342039,6.6056,1187.0,1185.4,6.79969]
[1610153342440,6.4649,1188.1,1185.4,6.79969]
[1610153342641,36.4649,1188.1,1185.5,55.2983]
[1610153342841,6.1059,1188.0,1185.5,55.2983]
[1610153343041,36.1059,1188.0,1185.5,55.2983]
[1610153343741,36.1059,1188.0,1186.3,6.06799]
[1610153344043,37.7717,1188.0,1186.3,6.06799]
[1610153344343,2.2569875,1188.5,1186.4,69.1619]
[1610153344545,2.25845035,1188.7,1186.4,69.1619]
[1610153344942,13.3744,1188.8,1186.4,69.1619]
[1610153345547,6.6653,1188.8,1186.4,69.1619]
[1610153347844,1.6962,1188.8,1186.4,69.1619]
[1610153348044,6.4204,1189.1,1186.4,69.1619]
[1610153348244,9.3265,1189.1,1186.4,69.1619]
[1610153348444,2.9061,1189.1,1186.3,2.0584]
[1610153348644,2.9061,1189.1,1186.4,68.0437]
[1610153349045,2.9061,1189.1,1186.4,70.9124]
[1610153349447,2.5464,1189.4,1186.4,70.9124]
[1610153349648,6.3471,1190.0,1186.4,70.9124]
[1610153349950,6.3471,1190.0,1186.5,6.7]
[1610153350549,4.00959,1189.0,1188.7,4.00959]
[1610153350850,8.2285,1190.0,1188.7,4.00959]
[1610153351347,8.2285,1190.0,1188.7,6.71199]
[1610153352249,8.2285,1190.0,1188.7,2.7024]
[1610153352453,38.2285,1190.0,1188.7,2.7024]
[1610153353150,38.2285,1190.0,1186.5,6.7]
[1610153353151,4.00959,1188.8,1186.5,6.7]
[1610153353449,4.00959,1188.8,1187.6,50.8719]
[1610153354349,2.7294,1189.4,1187.6,50.8719]
[1610153354950,2.7294,1189.4,1188.1,4.00959]
[1610153355150,2.7294,1189.4,1187.6,50.8719]
[1610153356050,4.4219,1189.4,1187.6,50.8719]
[1610153356249,2.7294,1189.4,1187.6,50.8719]
[1610153356750,33.64734403,1189.9,1187.6,50.8719]
[1610153356952,3.64734403,1189.9,1187.6,50.8719]
[1610153357153,114.89833646,1190.0,1187.6,50.8719]
[1610153357553,114.89833646,1190.0,1187.9,4.00959]
[1610153357754,112.6229,1190.0,1187.9,6.26529]
[1610153358655,82.6229,1190.0,1187.9,6.26529]
[1610153359255,14.9194,1190.0,1187.9,2.2557]
[1610153359457,14.9194,1190.0,1188.1,55.4789]
[1610153359656,8.2285,1190.0,1188.4,4.00959]
[1610153360057,8.2285,1190.0,1188.4,5.85499]
[1610153361658,6.3471,1190.0,1188.4,5.85499]
[1610153361858,30.0,1190.6,1188.4,1.8454]
[1610153362359,4.00959,1189.4,1189.2,4.00959]
[1610153365262,1.6663,1189.4,1188.4,1.8454]
[1610153365463,1.6795,1190.0,1188.4,1.8454]
[1610153365664,2.3742,1190.6,1188.4,2.4791]
[1610153365961,2.3742,1190.6,1188.9,67.555]
[1610153366261,3.67030662,1191.2,1188.9,69.9859]
[1610153366463,4.00959,1190.3,1190.0,4.00959]
[1610153367463,2.5585,1191.0,1190.0,4.00959]
[1610153367765,2.7745,1191.3,1190.0,4.00959]
[1610153367964,2.7745,1191.3,1190.0,6.64409]
[1610153368165,2.7745,1191.3,1190.0,71.93889]
[1610153368364,4.00959,1191.1,1190.9,4.00959]
[1610153369365,2.0992,1191.7,1190.9,4.00959]
[1610153369765,2.0992,1191.7,1190.9,6.91809]
[1610153369966,2.0992,1191.7,1190.9,2.9085]
[1610153370567,4.00959,1191.0,1190.9,2.9085]
[1610153372876,2.5636,1192.0,1190.9,2.9085]
[1610153374477,4.00959,1191.5,1191.3,4.00959]
[1610153375680,4.00959,1191.5,1190.9,2.9085]
[1610153375879,4.00959,1191.5,1190.4,54.5906]
[1610153376179,34.00959,1191.5,1190.4,54.5906]
[1610153376482,4.00959,1190.5,1190.4,54.5906]
[1610153376779,4.00959,1190.5,1190.0,2.6345]
[1610153376979,4.00959,1190.5,1189.9,4.00959]
[1610153378482,4.00959,1190.5,1190.2,4.00959]
[1610153378684,4.00959,1190.5,1190.2,6.92619]
[1610153379282,11.49833684,1192.0,1190.2,6.92619]
[1610153379584,9.2081,1192.0,1190.2,6.92619]
[1610153380590,9.2081,1192.0,1191.3,4.00959]
[1610153381286,2.5636,1192.0,1191.3,4.00959]
[1610153381486,2.747,1192.3,1191.3,4.00959]
[1610153381887,2.29237604,1192.4,1191.3,4.00959]
[1610153382087,3.67707951,1192.5,1191.3,4.00959]
[1610153382587,4.00959,1191.4,1191.1,1.9783]
[1610153384088,1.9483,1192.1,1191.1,1.9783]
[1610153384687,4.00959,1191.8,1191.4,4.00959]
[1610153385788,4.00959,1191.8,1191.1,1.9783]
[1610153386101,4.00959,1191.8,1190.9,63.6544]
[1610153386489,4.00959,1191.6,1190.9,63.6544]
[1610153387289,1.9483,1192.1,1190.9,63.6544]
[1610153387490,1.9483,1192.1,1190.9,66.0332]
[1610153387889,3.6812225,1192.7,1190.9,66.0332]
[1610153388490,4.00959,1191.2,1190.9,66.0332]
[1610153388694,1.9068,1192.0,1190.9,2.3788]
[1610153390191,1.9068,1192.0,1190.9,54.6777]
[1610153390592,1.9068,1192.0,1191.5,4.00959]
[1610153392592,4.00959,1191.9,1191.5,4.00959]
[1610153393294,2.7133,1192.3,1191.5,4.00959]
[1610153393494,2.7133,1192.3,1191.5,6.37299]
[1610153393895,2.9386,1192.6,1191.5,6.37299]
[1610153394095,10.03739773,1192.9,1191.5,6.37299]
[1610153394495,4.00959,1192.3,1192.1,4.00959]
[1610153394898,4.00959,1192.3,1191.5,2.3634]
[1610153395496,2.031,1192.9,1191.5,2.3634]
[1610153396199,2.031,1192.9,1191.5,9.78]
[1610153396699,4.00959,1192.2,1191.9,4.00959]
[1610153397503,5.66269,1192.2,1191.8,62.7584]
[1610153398201,2.031,1192.9,1191.8,62.7584]
[1610153398401,2.031,1192.9,1191.8,65.4554]
[1610153398804,2.031,1192.9,1192.2,4.00959]
[1610153399302,3.6893,1192.9,1192.2,4.00959]
[1610153400402,1.6583,1192.9,1192.2,4.00959]
[1610153400701,3.70109847,1193.4,1192.1,2.5908]
[1610153401201,4.00959,1192.5,1192.4,4.00959]
[1610153401606,3.70109847,1193.4,1192.1,2.5908]
[1610153402507,6.22419207,1193.5,1192.1,2.5908]
[1610153403207,4.00959,1192.6,1192.4,4.00959]
[1610153404010,6.22419207,1193.5,1192.1,2.5908]
[1610153404508,6.22419207,1193.5,1191.8,65.4554]
[1610153404509,2.5237,1193.5,1191.8,65.4554]
[1610153404809,6.232029,1193.5,1191.8,65.4554]
[1610153405409,4.00959,1192.8,1192.6,4.00959]
[1610153406709,3.71265225,1193.7,1192.6,4.00959]
[1610153406911,6.54633732,1193.8,1192.6,6.56359]
[1610153407311,6.84049,1193.8,1193.1,4.00959]
[1610153409416,2.8309,1193.8,1192.9,2.0371]
[1610153409615,6.57927159,1194.1,1192.9,2.0371]
[1610153409816,2.8582,1194.1,1192.9,2.0371]
[1610153410816,2.8582,1194.1,1192.9,10.866]
[1610153411217,5.48442073,1194.4,1192.9,10.866]
[1610153411417,5.48442073,1194.4,1193.5,4.00959]
[1610153411917,3.7294061,1194.4,1193.5,4.00959]
[1610153412117,3.73183572,1194.5,1193.5,4.00959]
[1610153412519,6.20933572,1194.5,1193.4,1.8155]
[1610153413017,2.4775,1194.5,1193.4,1.8155]
[1610153413717,5.50235372,1195.0,1193.4,1.8155]
[1610153413919,8.06271915,1195.1,1194.4,4.00959]
[1610153414319,2.5575,1195.1,1194.4,4.00959]
[1610153414820,6.30228534,1195.1,1194.4,4.00959]
[1610153415119,2.5575,1195.1,1194.4,6.15539]
[1610153415320,5.51278458,1195.2,1194.4,6.15539]
[1610153415719,5.5167411,1195.3,1194.4,6.15539]
[1610153415918,4.00959,1195.0,1194.7,4.00959]
[1610153417219,4.00959,1195.0,1194.4,2.1458]
[1610153417819,4.00959,1195.0,1194.8,4.00959]
[1610153419021,4.00959,1195.0,1194.4,2.1458]
[1610153419821,4.00959,1194.5,1194.4,2.1458]
[1610153420121,4.00959,1194.5,1194.2,4.00959]
[1610153420420,3.73267325,1195.0,1194.1,1.8846]
[1610153420621,2.7253,1194.8,1193.6,57.1539]
[1610153421721,1.83,1195.3,1193.6,57.1539]
[1610153421922,4.00959,1195.1,1194.8,4.00959]
[1610153423223,4.00959,1195.1,1193.9,48.774]
[1610153423523,1.83,1195.3,1193.9,50.7882]
[1610153423724,3.73610502,1195.5,1193.9,50.7882]
[1610153423925,8.38087165,1195.6,1193.9,50.7882]
[1610153424125,4.00959,1195.1,1194.9,4.00959]
[1610153424325,4.00959,1195.1,1194.3,54.1797]
[1610153426029,4.00959,1195.1,1195.0,4.00959]
[1610153426228,2.8859,1195.6,1195.0,4.00959]
[1610153426430,5.06405441,1195.7,1194.9,58.9174]
[1610153426828,7.28633824,1195.9,1194.9,58.9174]
[1610153428032,7.28633824,1195.9,1194.8,2.7323]
[1610153428530,4.00959,1194.9,1194.8,2.7323]
[1610153428932,2.5258,1195.6,1194.8,2.7323]
[1610153429933,2.5258,1195.6,1194.8,67.0928]
[1610153430135,7.73359144,1195.9,1194.8,67.0928]
[1610153430634,4.00959,1195.8,1195.6,4.00959]
[1610153431234,10.89690056,1196.2,1195.6,4.00959]
[1610153431435,7.79920615,1196.2,1195.3,2.0604]
[1610153431636,7.79920615,1196.2,1195.6,2.3188]
[1610153431836,5.52165879,1196.3,1195.6,2.3188]
[1610153432537,5.52051965,1196.2,1195.3,2.0604]
[1610153432836,5.51568355,1196.0,1195.3,2.0604]
[1610153433036,5.51298379,1195.9,1194.8,67.0928]
[1610153433437,7.58298379,1195.9,1194.8,67.0928]
[1610153433836,5.51107677,1195.7,1194.8,67.0928]
[1610153434735,7.58284161,1195.9,1194.8,67.0928]
[1610153435136,4.00959,1195.3,1194.8,71.10239]
[1610153437042,4.00959,1195.3,1195.2,4.00959]
[1610153437343,4.00959,1195.3,1195.1,2.7283]
[1610153438644,2.07,1195.9,1195.1,2.7283]
[1610153438843,5.50242903,1196.0,1195.1,2.7283]
[1610153439246,5.50594675,1196.1,1195.1,2.7283]
[1610153440049,8.31949985,1196.2,1195.1,2.7283]
[1610153440651,11.40996056,1196.2,1195.1,2.7283]
[1610153440951,5.5099364,1196.1,1195.1,2.7283]
[1610153441551,8.3178698,1196.2,1195.1,2.7283]
[1610153442252,8.3178698,1196.2,1194.8,67.0928]
[1610153444458,2.8078,1196.2,1194.8,67.0928]
[1610153444659,2.8078,1196.2,1194.8,2.7323]
[1610153444859,5.52016047,1196.8,1194.5,2.4775]
[1610153445058,2.357,1196.4,1194.5,1.974]
[1610153445360,2.357,1196.4,1195.6,69.5382]
[1610153445559,6.36659,1196.4,1196.3,4.00959]
[1610153446458,6.36659,1196.4,1196.1,2.7139]
[1610153447158,2.357,1196.4,1195.6,71.7735]
[1610153447359,2.357,1196.4,1195.6,2.2353]
[1610153447559,2.357,1196.4,1195.7,4.00959]
[1610153447863,2.357,1196.4,1195.6,2.2353]
[1610153448359,2.357,1196.4,1195.3,2.5397]
[1610153449161,2.357,1196.4,1195.0,68.9506]
[1610153449561,2.357,1196.4,1195.6,4.00959]
[1610153450062,5.51523022,1196.6,1195.6,4.00959]
[1610153450564,5.51523022,1196.6,1195.1,2.4788]
[1610153450864,5.51565165,1196.7,1195.1,2.4788]
[1610153451164,7.84587782,1196.8,1195.1,2.4788]
[1610153451566,4.00959,1195.9,1195.8,4.00959]
[1610153453069,1.9786,1196.2,1195.8,4.00959]
[1610153453569,2.3302,1196.8,1195.8,4.00959]
[1610153453769,4.00959,1196.3,1195.8,4.00959]
[1610153454174,2.3302,1196.8,1195.7,69.4826]
[1610153454470,5.52249762,1197.1,1195.7,71.48]
[1610153456073,5.53006253,1197.2,1195.7,71.48]
[1610153456272,5.53006253,1197.2,1196.5,4.00959]
[1610153456674,5.53006253,1197.2,1196.1,2.0763]
[1610153456873,8.01606253,1197.2,1196.1,2.0763]
[1610153458274,4.00959,1196.5,1196.2,4.00959]
[1610153458475,4.00959,1196.5,1196.1,2.0763]
[1610153458675,4.00959,1196.5,1195.7,1.9974]
[1610153458875,6.74219,1196.5,1195.7,1.9974]